fUST/lending_fUST_20251207
["ID","MTS","AMOUNT","RATE_DAILY","PERIOD"]
[396541847,1765044251197,150.47,7.4e-05,2]
[396541848,1765044252181,150.47,7.8e-05,2]
[396541849,1765044288655,150.0,6.744e-05,2]
[396541850,1765044289080,150.0,7.065e-05,2]
[396541851,1765044289533,150.0,7.386e-05,2]
[396541852,1765044289917,150.0,7.707e-05,2]
[396541853,1765044290297,150.0,8.028e-05,2]
[396541854,1765044309017,150.47,6.6e-05,2]
[396541855,1765044309325,150.47,7.1e-05,2]
[396541856,1765044309687,150.47,7.7e-05,2]
[396541857,1765044357355,150.0,6.745e-05,2]
[396541858,1765044358217,150.0,7.066e-05,2]
[396541859,1765044358456,150.0,7.387e-05,2]
[396541860,1765044359068,150.0,7.708e-05,2]
[396541861,1765044366996,150.47,6.6e-05,2]
[396541862,1765044367337,150.47,7.3e-05,2]
[396541863,1765044367878,150.47,8e-05,2]
[396541865,1765044426055,150.47,6.6e-05,2]
[396541866,1765044427055,150.47,7.5e-05,2]
[396541867,1765044485954,150.47,6.6e-05,2]
[396541868,1765044486236,150.47,7.8e-05,2]
[396541869,1765044542703,250.0,0.00013108,3]
[396541870,1765044544825,150.47,6.6e-05,2]
[396541871,1765044604705,150.47,6.6e-05,2]
[396541913,1765044632136,-1205.2257688,8.187e-05,2]
[396541915,1765044632146,-218.0,8.187e-05,2]
[396541917,1765044632155,-313.85030106,8.207e-05,2]
[396541919,1765044632165,-300.0,8.208e-05,2]
[396541921,1765044632174,-300.0,8.208e-05,2]
[396541923,1765044632183,-300.0,8.208e-05,2]
[396541925,1765044632192,-300.0,8.208e-05,2]
[396541927,1765044632202,-1200.0,8.208e-05,2]
[396541929,1765044632211,-1200.0,8.209e-05,2]
[396541931,1765044632221,-500.0,8.209e-05,2]
[396541933,1765044632231,-500.0,8.209e-05,2]
[396541935,1765044632240,-500.0,8.209e-05,2]
[396541937,1765044632250,-500.0,8.209e-05,2]
[396541939,1765044632259,-500.0,8.209e-05,2]
[396541941,1765044632268,-500.0,8.209e-05,2]
[396541943,1765044632277,-349.76191685,8.209e-05,2]
[396541945,1765044632286,-500.0,8.209e-05,2]
[396541946,1765044632296,-500.0,8.209e-05,2]
[396541947,1765044632305,-435.68981964,8.209e-05,2]
[396541948,1765044632314,-500.0,8.209e-05,2]
[396541949,1765044632324,-500.0,8.209e-05,2]
[396541950,1765044632334,-500.0,8.209e-05,2]
[396541952,1765044632343,-500.0,8.209e-05,2]
[396541954,1765044632352,-500.0,8.209e-05,2]
[396541956,1765044632361,-520.23420365,8.209e-05,2]
[396541957,1765044632371,-500.0,8.209e-05,2]
[396541958,1765044632381,-500.0,8.209e-05,2]
[396541959,1765044632393,-500.0,8.209e-05,2]
[396541960,1765044632403,-500.0,8.209e-05,2]
[396541961,1765044632412,-500.0,8.209e-05,2]
[396541962,1765044632421,-174.39573592,8.209e-05,2]
[396541963,1765044632431,-500.0,8.209e-05,2]
[396541964,1765044632442,-500.0,8.209e-05,2]
[396541965,1765044632454,-500.0,8.209e-05,2]
[396541966,1765044632464,-500.0,8.209e-05,2]
[396541967,1765044632473,-500.0,8.209e-05,2]
[396541968,1765044632484,-500.0,8.209e-05,2]
[396541969,1765044632495,-500.0,8.209e-05,2]
[396541970,1765044632505,-500.0,8.209e-05,2]
[396541971,1765044632515,-500.0,8.209e-05,2]
[396541972,1765044632525,-500.0,8.209e-05,2]
[396541973,1765044632536,-500.0,8.209e-05,2]
[396541974,1765044632545,-500.0,8.209e-05,2]
[396541975,1765044632555,-500.0,8.209e-05,2]
[396541976,1765044632564,-500.0,8.209e-05,2]
[396541977,1765044632574,-500.0,8.209e-05,2]
[396541978,1765044632585,-500.0,8.209e-05,2]
[396541979,1765044632595,-500.0,8.209e-05,2]
[396541980,1765044632605,-500.0,8.209e-05,2]
[396541981,1765044632614,-500.0,8.209e-05,2]
[396541982,1765044632623,-500.0,8.209e-05,2]
[396541983,1765044632633,-500.0,8.209e-05,2]
[396541984,1765044632642,-165.0,8.209e-05,2]
[396541985,1765044632651,-500.0,8.209e-05,2]
[396541986,1765044632661,-450.15916011,8.209e-05,2]
[396541987,1765044632670,-500.0,8.209e-05,2]
[396541988,1765044632679,-500.0,8.209e-05,2]
[396541989,1765044632688,-500.0,8.209e-05,2]
[396541990,1765044632698,-464.39655582,8.209e-05,2]
[396541991,1765044632708,-500.0,8.209e-05,2]
[396541992,1765044632717,-500.0,8.209e-05,2]
[396541993,1765044632727,-500.0,8.209e-05,2]
[396541994,1765044632738,-500.0,8.209e-05,2]
[396541995,1765044632748,-500.0,8.209e-05,2]
[396541996,1765044632757,-500.0,8.209e-05,2]
[396541997,1765044632768,-500.0,8.209e-05,2]
[396541998,1765044632777,-55.46084425,8.209e-05,2]
[396541999,1765044634231,9097.19,8.109e-05,2]
[396542000,1765044634256,10000.01,8.109e-05,2]
[396542001,1765044634282,10000.01,8.109e-05,2]
[396542002,1765044634312,10000.01,8.109e-05,2]
[396542003,1765044634338,10000.01,8.109e-05,2]
[396542004,1765044634364,10000.01,8.109e-05,2]
[396542005,1765044634392,10000.01,8.109e-05,2]
[396542006,1765044634418,10000.01,8.109e-05,2]
[396542007,1765044634445,10000.01,8.109e-05,2]
[396542008,1765044634477,10000.01,8.109e-05,2]
[396542032,1765044637850,-4023.56816462,8.109e-05,2]
[396542034,1765044637865,-171386.78373719,8.109e-05,2]
[396542186,1765044640132,-1428.66,8.109e-05,2]
[396542192,1765044640179,-1666.66011435,8.109e-05,2]
[396542194,1765044640190,-348.75704229,8.109e-05,2]
[396542196,1765044640201,-18165.2917058,8.109e-05,2]
[396542286,1765044641053,-82641.40882188,8.109e-05,2]
[396542288,1765044641064,-721.77980252,8.109e-05,2]
[396542483,1765044642988,-508.38427958,8.109e-05,2]
[396542484,1765044642999,-911.53219827,8.109e-05,2]
[396542488,1765044643139,-1836.0,8.109e-05,2]
[396542949,1765044647863,-266.378,8.109e-05,2]
[396542954,1765044647900,-16458.91043492,8.109e-05,2]
[396543493,1765044653808,-709.93633175,8.028e-05,2]
[396543539,1765044654236,-1419.8726635,8.028e-05,2]
[396543559,1765044654416,-2839.745327,8.028e-05,2]
[396543573,1765044654539,-4320.519346,8.028e-05,2]
[396544234,1765044662163,1358.971308,8.028e-05,2]
[396544275,1765044662535,2174.24010896,8.028e-05,2]
[396544338,1765044663191,300.0,8.108e-05,2]
[396544351,1765044663303,-250.00642538,8.109e-05,2]
[396544458,1765044664306,-170.84051163,8.109e-05,2]
[396544555,1765044665247,150.08,6.6e-05,2]
[396544598,1765044665650,150.08,7e-05,2]
[396544610,1765044665759,-288.01848471,8.109e-05,2]
[396544630,1765044665938,150.08,7.4e-05,2]
[396544661,1765044666214,150.08,7.8e-05,2]
[396544878,1765044668311,-172.9502656,8.109e-05,2]
[396545055,1765044670250,989.79837811,8.028e-05,2]
[396545073,1765044670406,-217.29391882,8.109e-05,2]
[396545199,1765044671796,-270.27895676,8.109e-05,2]
[396545360,1765044673781,-371.27240308,8.109e-05,2]
[396545524,1765044675771,-188.72167363,8.109e-05,2]
[396545746,1765044678058,230.24625868,8.028e-05,2]
[396545768,1765044678256,-213.96167796,8.109e-05,2]
[396545793,1765044678950,150.0,6.659e-05,2]
[396545799,1765044679369,150.0,6.976e-05,2]
[396545804,1765044679761,150.0,7.293e-05,2]
[396545835,1765044680205,150.0,7.61e-05,2]
[396545877,1765044680596,150.0,7.927e-05,2]
[396545907,1765044680867,-234.15067739,8.109e-05,2]
[396546320,1765044684847,-221.61461118,8.109e-05,2]
[396546350,1765044703858,176.01194387,8.1e-05,2]
[396546351,1765044703890,315.827,8.1e-05,2]
[396546352,1765044722277,300.0,8.108e-05,2]
[396546353,1765044723004,300.0,8.108e-05,2]
[396546354,1765044727945,151.18,6.6e-05,2]
[396546355,1765044728329,151.18,7.1e-05,2]
[396546356,1765044728599,151.18,7.5e-05,2]
[396546357,1765044729077,151.18,8e-05,2]
[396546358,1765044747976,150.0,6.658e-05,2]
[396546359,1765044748179,150.0,6.975e-05,2]
[396546360,1765044748653,150.0,7.292e-05,2]
[396546361,1765044749038,150.0,7.609e-05,2]
[396546362,1765044752608,200.0,7.215e-05,2]
[396546363,1765044752805,500.0,8.108e-05,2]
[396546364,1765044752835,218.26628398,8.108e-05,2]
[396546365,1765044752870,372.19576854,8.108e-05,2]
[396546366,1765044752902,500.0,8.108e-05,2]
[396546367,1765044752932,500.0,8.108e-05,2]
[396546368,1765044752974,368.38425786,8.108e-05,2]
[396546369,1765044752998,131.61574214,8.108e-05,2]
[396546370,1765044753027,500.0,8.108e-05,2]
[396546371,1765044753071,500.0,8.108e-05,2]
[396546372,1765044753102,500.0,8.108e-05,2]
[396546373,1765044753142,500.0,8.108e-05,2]
[396546374,1765044753172,500.0,8.108e-05,2]
[396546375,1765044753214,500.0,8.108e-05,2]
[396546376,1765044753248,500.0,8.108e-05,2]
[396546377,1765044753283,451.37852916,8.108e-05,2]
[396546378,1765044753324,500.0,8.108e-05,2]
[396546379,1765044753658,500.0,8.108e-05,2]
[396546380,1765044753707,500.0,8.108e-05,2]
[396546381,1765044753740,500.0,8.108e-05,2]
[396546382,1765044753773,500.0,8.108e-05,2]
[396546383,1765044753825,500.0,8.108e-05,2]
[396546384,1765044753874,500.0,8.108e-05,2]
[396546385,1765044753914,500.0,8.108e-05,2]
[396546386,1765044753962,500.0,8.108e-05,2]
[396546387,1765044753995,500.0,8.108e-05,2]
[396546388,1765044754029,500.0,8.108e-05,2]
[396546389,1765044754066,417.0157287,8.108e-05,2]
[396546390,1765044754091,82.9842713,8.108e-05,2]
[396546391,1765044754152,500.0,8.108e-05,2]
[396546392,1765044754206,198.93691875,8.108e-05,2]
[396546393,1765044754238,500.0,8.108e-05,2]
[396546394,1765044754274,500.0,8.108e-05,2]
[396546395,1765044754313,543.56898197,8.108e-05,2]
[396546396,1765044754418,500.0,8.108e-05,2]
[396546397,1765044754465,500.0,8.108e-05,2]
[396546398,1765044754555,500.0,8.108e-05,2]
[396546399,1765044754593,500.0,8.108e-05,2]
[396546400,1765044754645,500.0,8.108e-05,2]
[396546401,1765044754676,500.0,8.108e-05,2]
[396546402,1765044754718,500.0,8.108e-05,2]
[396546403,1765044754750,500.0,8.108e-05,2]
[396546404,1765044754803,500.0,8.108e-05,2]
[396546405,1765044754840,500.0,8.108e-05,2]
[396546406,1765044754882,305.87604187,8.108e-05,2]
[396546407,1765044754953,500.0,8.108e-05,2]
[396546408,1765044754984,500.0,8.108e-05,2]
[396546409,1765044755017,239.1043231,8.108e-05,2]
[396546410,1765044755059,500.0,8.108e-05,2]
[396546411,1765044755095,500.0,8.108e-05,2]
[396546412,1765044755127,129.53946301,8.108e-05,2]
[396546413,1765044755152,370.46053699,8.108e-05,2]
[396546414,1765044755186,500.0,8.108e-05,2]
[396546415,1765044755228,500.0,8.108e-05,2]
[396546416,1765044755281,500.0,8.108e-05,2]
[396546417,1765044755335,500.0,8.108e-05,2]
[396546418,1765044755368,500.0,8.108e-05,2]
[396546419,1765044755408,500.0,8.108e-05,2]
[396546420,1765044755442,500.0,8.108e-05,2]
[396546421,1765044755484,500.0,8.108e-05,2]
[396546422,1765044755538,500.0,8.108e-05,2]
[396546423,1765044755628,500.0,8.108e-05,2]
[396546424,1765044755716,500.0,8.108e-05,2]
[396546425,1765044755751,500.0,8.108e-05,2]
[396546426,1765044755790,500.0,8.108e-05,2]
[396546427,1765044755840,500.0,8.108e-05,2]
[396546428,1765044755880,500.0,8.108e-05,2]
[396546429,1765044755912,500.0,8.108e-05,2]
[396546430,1765044755945,500.0,8.108e-05,2]
[396546431,1765044755985,500.0,8.108e-05,2]
[396546432,1765044756034,500.0,8.108e-05,2]
[396546433,1765044756082,129.54946301,8.108e-05,2]
[396546434,1765044756106,370.45053699,8.108e-05,2]
[396546435,1765044756139,500.0,8.108e-05,2]
[396546436,1765044756180,500.0,8.108e-05,2]
[396546437,1765044756222,500.0,8.108e-05,2]
[396546438,1765044756256,500.0,8.108e-05,2]
[396546439,1765044756291,500.0,8.108e-05,2]
[396546440,1765044756330,500.0,8.108e-05,2]
[396546441,1765044756446,500.0,8.108e-05,2]
[396546442,1765044756495,500.0,8.108e-05,2]
[396546443,1765044756541,500.0,8.108e-05,2]
[396546444,1765044771972,460.49251736,8.028e-05,2]
[396546445,1765044772085,500.0,8.108e-05,2]
[396546446,1765044772178,500.0,8.108e-05,2]
[396546447,1765044778822,1200.0,8.108e-05,2]
[396546448,1765044782445,300.0,8.108e-05,2]
[396546449,1765044787729,154.04,6.6e-05,2]
[396546450,1765044788061,154.04,7e-05,2]
[396546451,1765044788406,154.04,7.4e-05,2]
[396546452,1765044789400,154.04,7.8e-05,2]
[396546453,1765044796192,500.0,8.108e-05,2]
[396546454,1765044802447,230.24625868,8.028e-05,2]
[396546455,1765044802803,822.66068697,8.108e-05,2]
[396546456,1765044802830,2424.50705329,8.108e-05,2]
[396546457,1765044802863,3247.16774026,8.108e-05,2]
[396546458,1765044802903,3247.16774026,8.108e-05,2]
[396546459,1765044802934,1081.16746619,8.108e-05,2]
[396546460,1765044802958,2166.00027407,8.108e-05,2]
[396546461,1765044803000,3247.16774026,8.108e-05,2]
[396546462,1765044803037,3247.16774026,8.108e-05,2]
[396546463,1765044803081,1339.67424541,8.108e-05,2]
[396546464,1765044803106,1907.49349485,8.108e-05,2]
[396546465,1765044803156,3247.16774026,8.108e-05,2]
[396546466,1765044803192,3247.16774026,8.108e-05,2]
[396546467,1765044803232,1598.18102463,8.108e-05,2]
[396546468,1765044803258,1648.98671563,8.108e-05,2]
[396546469,1765044803296,3247.16774026,8.108e-05,2]
[396546470,1765044803335,3247.16774026,8.108e-05,2]
[396546471,1765044803374,1856.68780385,8.108e-05,2]
[396546472,1765044803399,1390.47993641,8.108e-05,2]
[396546473,1765044803436,3247.16774026,8.108e-05,2]
[396546474,1765044803482,3247.16774026,8.108e-05,2]
[396546475,1765044803519,2115.19458307,8.108e-05,2]
[396546476,1765044803543,1131.97315719,8.108e-05,2]
[396546477,1765044803591,3247.16774026,8.108e-05,2]
[396546478,1765044803624,3247.16774026,8.108e-05,2]
[396546479,1765044803663,2373.70136229,8.108e-05,2]
[396546480,1765044803689,873.46637797,8.108e-05,2]
[396546481,1765044803728,3247.16774026,8.108e-05,2]
[396546482,1765044803782,3247.16774026,8.108e-05,2]
[396546483,1765044803818,2632.20814151,8.108e-05,2]
[396546484,1765044803843,614.95959875,8.108e-05,2]
[396546485,1765044803883,3247.16774026,8.108e-05,2]
[396546486,1765044803922,3247.16774026,8.108e-05,2]
[396546487,1765044803958,2890.71492073,8.108e-05,2]
[396546488,1765044803983,356.45281953,8.108e-05,2]
[396546489,1765044804016,3247.16774026,8.108e-05,2]
[396546490,1765044804054,3247.16774026,8.108e-05,2]
[396546491,1765044804086,3149.22169995,8.108e-05,2]
[396546492,1765044813669,150.0,6.665e-05,2]
[396546493,1765044822108,-150.0,6.912e-05,2]
[396546494,1765044822140,-150.0,6.982e-05,2]
[396546495,1765044822171,-150.0,7.3e-05,2]
[396546496,1765044822202,-150.0,7.617e-05,2]
[396546497,1765044822232,-150.0,7.934e-05,2]
[396546498,1765044822261,-460.49251736,8.027e-05,2]
[396546499,1765044822291,-97.94604031,8.108e-05,2]
[396546500,1765044822322,-3247.16774026,8.108e-05,2]
[396546501,1765044822543,-3247.16774026,8.108e-05,2]
[396546502,1765044822575,-258.50677922,8.108e-05,2]
[396546503,1765044823024,-2988.66096104,8.108e-05,2]
[396546504,1765044823058,-775.52033766,8.108e-05,2]
[396546505,1765044823209,-2471.6474026,8.108e-05,2]
[396546506,1765044823240,-1809.54745454,8.108e-05,2]
[396546507,1765044823339,-1437.62028572,8.108e-05,2]
[396546508,1765044823371,-3247.16774026,8.108e-05,2]
[396546509,1765044823443,-3247.16774026,8.108e-05,2]
[396546510,1765044823474,-258.50677922,8.108e-05,2]
[396546511,1765044823580,-2988.66096104,8.108e-05,2]
[396546512,1765044823612,-775.52033766,8.108e-05,2]
[396546513,1765044823722,-2471.6474026,8.108e-05,2]
[396546514,1765044823755,-1809.54745454,8.108e-05,2]
[396546515,1765044823962,-1437.62028572,8.108e-05,2]
[396546516,1765044823992,-3247.16774026,8.108e-05,2]
[396546517,1765044824021,-130.43394804,8.108e-05,2]
[396546518,1765044828624,-230.24625868,8.027e-05,2]
[396546519,1765044828653,-369.56605196,8.108e-05,2]
[396546520,1765044828684,-1166.13130749,8.108e-05,2]
[396546521,1765044828717,-1166.13130749,8.108e-05,2]
[396546522,1765044828746,-1166.13130749,8.108e-05,2]
[396546523,1765044828777,-637.46622629,8.108e-05,2]
[396546524,1765044829028,-528.6650812,8.108e-05,2]
[396546525,1765044829060,-1166.13130749,8.108e-05,2]
[396546526,1765044829090,-1166.13130749,8.108e-05,2]
[396546527,1765044829121,-1166.13130749,8.108e-05,2]
[396546528,1765044829153,-779.76068517,8.108e-05,2]
[396546529,1765044829219,-386.37062232,8.108e-05,2]
[396546530,1765044829251,-1166.13130749,8.108e-05,2]
[396546531,1765044829283,-1166.13130749,8.108e-05,2]
[396546532,1765044829314,-1166.13130749,8.108e-05,2]
[396546533,1765044829344,-1064.34960293,8.108e-05,2]
[396546534,1765044829652,-101.78170456,8.108e-05,2]
[396546535,1765044829687,-1166.13130749,8.108e-05,2]
[396546536,1765044829717,-1166.13130749,8.108e-05,2]
[396546537,1765044829748,-1166.13130749,8.108e-05,2]
[396546538,1765044829778,-1166.13130749,8.108e-05,2]
[396546539,1765044829944,-1166.13130749,8.108e-05,2]
[396546540,1765044829974,-1166.13130749,8.108e-05,2]
[396546541,1765044830005,-1166.13130749,8.108e-05,2]
[396546542,1765044830036,-1166.13130749,8.108e-05,2]
[396546543,1765044837709,-230.24625868,8.027e-05,2]
[396546544,1765044842765,5114.04548745,8.027e-05,2]
[396546545,1765044843012,300.0,8.107e-05,2]
[396546546,1765044851190,152.6,6.6e-05,2]
[396546547,1765044851488,152.6,6.9e-05,2]
[396546548,1765044851798,152.6,7.2e-05,2]
[396546549,1765044852336,152.6,7.5e-05,2]
[396546550,1765044852413,152.6,7.7e-05,2]
[396546551,1765044852640,152.6,8e-05,2]
[396546552,1765044857986,3209.87199519,8.027e-05,2]
[396546553,1765044858009,1486.58503472,8.027e-05,2]
[396546554,1765044865581,250.0,8.042e-05,2]
[396546555,1765044880816,150.0,6.661e-05,2]
[396546556,1765044885124,244.32632431,8.107e-05,2]
[396546557,1765044902546,300.0,8.108e-05,2]
[396546558,1765044902697,300.0,8.108e-05,2]
[396546559,1765044902737,300.0,8.108e-05,2]
[396546560,1765044903776,-500.0,8.108e-05,2]
[396546561,1765044903808,-312.57329504,8.109e-05,2]
[396546562,1765044908109,1200.0,8.108e-05,2]
[396546563,1765044910492,152.61,6.6e-05,2]
[396546564,1765044910787,152.61,7e-05,2]
[396546565,1765044911080,152.61,7.4e-05,2]
[396546566,1765044911381,152.61,7.7e-05,2]
[396546567,1765044911660,152.61,8.1e-05,2]
[396546568,1765044962776,300.0,8.108e-05,2]
[396546569,1765044968646,152.6,6.6e-05,2]
[396546570,1765044968761,152.6,7.1e-05,2]
[396546571,1765044968903,152.6,7.6e-05,2]
[396546572,1765044969001,152.6,8.1e-05,2]
[396546573,1765045022720,300.0,8.108e-05,2]
[396546574,1765045027599,152.61,6.6e-05,2]
[396546575,1765045028019,152.61,7.3e-05,2]
[396546576,1765045028328,152.61,8e-05,2]
[396546577,1765045067984,289.22044914,7.807e-05,2]
[396546578,1765045069870,330.20711851,7.807e-05,2]
[396546579,1765045082090,1200.0,8.108e-05,2]
[396546580,1765045082729,300.0,8.108e-05,2]
[396546581,1765045084971,206.8461797,8.009e-05,2]
[396546582,1765045085960,152.6,6.6e-05,2]
[396546583,1765045086257,152.6,7.5e-05,2]
[396546584,1765045104078,500.0,8.108e-05,2]
[396546585,1765045104111,500.0,8.108e-05,2]
[396546586,1765045104399,500.0,8.108e-05,2]
[396546587,1765045104434,500.0,8.108e-05,2]
[396546588,1765045104473,112.10966257,8.108e-05,2]
[396546589,1765045104497,387.89033743,8.108e-05,2]
[396546590,1765045104544,500.0,8.108e-05,2]
[396546591,1765045104587,500.0,8.108e-05,2]
[396546592,1765045104616,500.0,8.108e-05,2]
[396546593,1765045104650,500.0,8.108e-05,2]
[396546594,1765045104682,500.0,8.108e-05,2]
[396546595,1765045105141,500.0,8.108e-05,2]
[396546596,1765045105233,500.0,8.108e-05,2]
[396546597,1765045105282,500.0,8.108e-05,2]
[396546598,1765045105318,500.0,8.108e-05,2]
[396546599,1765045105361,500.0,8.108e-05,2]
[396546600,1765045105392,500.0,8.108e-05,2]
[396546601,1765045105423,500.0,8.108e-05,2]
[396546602,1765045105454,500.0,8.108e-05,2]
[396546603,1765045105493,459.06904992,8.108e-05,2]
[396546604,1765045105527,500.0,8.108e-05,2]
[396546605,1765045105565,500.0,8.108e-05,2]
[396546606,1765045105599,500.0,8.108e-05,2]
[396546607,1765045105638,500.0,8.108e-05,2]
[396546608,1765045135860,653.05061265,8.108e-05,2]
[396546609,1765045135886,1897.25409323,8.108e-05,2]
[396546610,1765045136370,2550.30470588,8.108e-05,2]
[396546611,1765045136404,2550.30470588,8.108e-05,2]
[396546612,1765045136456,2550.30470588,8.108e-05,2]
[396546613,1765045136489,451.84178913,8.108e-05,2]
[396546614,1765045136514,2098.46291675,8.108e-05,2]
[396546615,1765045136566,2550.30470588,8.108e-05,2]
[396546616,1765045136665,2550.30470588,8.108e-05,2]
[396546617,1765045137010,2550.30470588,8.108e-05,2]
[396546618,1765045137048,250.63296561,8.108e-05,2]
[396546619,1765045137074,2299.67174027,8.108e-05,2]
[396546620,1765045137106,2550.30470588,8.108e-05,2]
[396546621,1765045137143,2550.30470588,8.108e-05,2]
[396546622,1765045137175,2550.30470588,8.108e-05,2]
[396546623,1765045137217,49.42414209,8.108e-05,2]
[396546624,1765045137242,2500.88056379,8.108e-05,2]
[396546625,1765045137273,2550.30470588,8.108e-05,2]
[396546626,1765045137326,2550.30470588,8.108e-05,2]
[396546627,1765045137363,2398.52002445,8.108e-05,2]
[396546628,1765045137386,151.78468143,8.108e-05,2]
[396546629,1765045137427,2550.30470588,8.108e-05,2]
[396546630,1765045137464,2550.30470588,8.108e-05,2]
[396546631,1765045137501,2550.30470588,8.108e-05,2]
[396546632,1765045137539,2197.31120093,8.108e-05,2]
[396546633,1765045137563,352.99350495,8.108e-05,2]
[396546634,1765045137598,2550.30470588,8.108e-05,2]
[396546635,1765045137631,2550.30470588,8.108e-05,2]
[396546636,1765045137662,2550.30470588,8.108e-05,2]
[396546637,1765045137693,1996.10237741,8.108e-05,2]
[396546638,1765045137718,554.20232847,8.108e-05,2]
[396546639,1765045137750,2550.30470588,8.108e-05,2]
[396546640,1765045137798,2550.30470588,8.108e-05,2]
[396546641,1765045137836,2550.30470588,8.108e-05,2]
[396546642,1765045137871,1794.89355389,8.108e-05,2]
[396546643,1765045137896,755.41115199,8.108e-05,2]
[396546644,1765045137939,2550.30470588,8.108e-05,2]
[396546645,1765045137990,2550.30470588,8.108e-05,2]
[396546646,1765045138026,2550.30470588,8.108e-05,2]
[396546647,1765045138068,1593.68473037,8.108e-05,2]
[396546648,1765045138096,956.61997551,8.108e-05,2]
[396546649,1765045138137,2550.30470588,8.108e-05,2]
[396546650,1765045138172,2550.30470588,8.108e-05,2]
[396546651,1765045138222,2550.30470588,8.108e-05,2]
[396546652,1765045138253,1392.47590685,8.108e-05,2]
[396546653,1765045145481,152.86,6.6e-05,2]
[396546654,1765045158184,-152.86,7.326e-05,2]
[396546655,1765045158213,-115.63766608,7.4e-05,2]
[396546656,1765045159797,-37.22233392,7.4e-05,2]
[396546657,1765045159837,-300.0,8.026e-05,2]
[396546658,1765045159874,-152.86,8.1e-05,2]
[396546659,1765045159910,-300.0,8.107e-05,2]
[396546660,1765045171460,5734.92279237,8.027e-05,2]
[396546661,1765045187073,2684.92253979,8.027e-05,2]
[396546662,1765045187096,8639.6637153,8.027e-05,2]
[396546663,1765045200851,150.0,6.664e-05,2]
[396546664,1765045201264,150.0,6.981e-05,2]
[396546665,1765045201707,150.0,7.299e-05,2]
[396546666,1765045202224,150.0,7.616e-05,2]
[396546667,1765045202280,300.0,8.107e-05,2]
[396546668,1765045203042,300.0,8.107e-05,2]
[396546669,1765045204671,150.0,7.933e-05,2]
[396546670,1765045205078,10.3462847,8.108e-05,2]
[396546671,1765045205103,207.6537153,8.108e-05,2]
[396546672,1765045206247,150.5,6.6e-05,2]
[396546673,1765045206827,150.5,6.9e-05,2]
[396546674,1765045207130,150.5,7.1e-05,2]
[396546675,1765045207516,150.5,7.4e-05,2]
[396546676,1765045207919,150.5,7.6e-05,2]
[396546677,1765045208278,150.5,7.9e-05,2]
[396546678,1765045208521,150.5,8.1e-05,2]
[396546679,1765045208631,1200.0,8.107e-05,2]
[396546680,1765045241812,500.0,8.107e-05,2]
[396546681,1765045241844,282.61877577,8.107e-05,2]
[396546682,1765045241883,989.92403602,8.107e-05,2]
[396546683,1765045241922,500.0,8.107e-05,2]
[396546684,1765045241954,500.0,8.107e-05,2]
[396546685,1765045241996,235.60170719,8.107e-05,2]
[396546686,1765045242032,989.92403602,8.107e-05,2]
[396546687,1765045242073,500.0,8.107e-05,2]
[396546688,1765045242117,500.0,8.107e-05,2]
[396546689,1765045242171,989.92403602,8.107e-05,2]
[396546690,1765045242226,989.92403602,8.107e-05,2]
[396546691,1765045242264,190.95732434,8.107e-05,2]
[396546692,1765045242302,369.98233332,8.107e-05,2]
[396546693,1765045242327,130.01766668,8.107e-05,2]
[396546694,1765045242362,989.92403602,8.107e-05,2]
[396546695,1765045242411,495.906905,8.107e-05,2]
[396546696,1765045242448,989.92403602,8.107e-05,2]
[396546697,1765045242501,989.92403602,8.107e-05,2]
[396546698,1765045242555,989.92403602,8.107e-05,2]
[396546699,1765045242591,500.0,8.107e-05,2]
[396546700,1765045242631,989.92403602,8.107e-05,2]
[396546701,1765045242692,989.92403602,8.107e-05,2]
[396546702,1765045242748,989.92403602,8.107e-05,2]
[396546703,1765045242801,989.92403602,8.107e-05,2]
[396546704,1765045242859,954.69314016,8.107e-05,2]
[396546705,1765045242884,35.23089586,8.107e-05,2]
[396546706,1765045242912,224.41207098,8.107e-05,2]